bitfinex/quotes_BTCUSD_20250730
["timestamp","ask_amount","ask_price","bid_price","bid_amount"]
[1753895301216,7.21198604,117960.0,117950.0,0.11605589]
[1753895302774,2.21198604,117960.0,117950.0,0.11605589]
[1753895302971,7.08262604,117960.0,117950.0,0.11605589]
[1753895303213,7.21202604,117960.0,117950.0,0.11605589]
[1753895303741,2.21202604,117960.0,117950.0,0.11605589]
[1753895303962,7.21202604,117960.0,117950.0,0.11605589]
[1753895304171,7.23022331,117960.0,117950.0,0.11605589]
[1753895305996,6.64026196,117960.0,117950.0,0.11605589]
[1753895306208,6.66694392,117960.0,117950.0,0.11605589]
[1753895306410,6.66694385,117960.0,117950.0,0.11605589]
[1753895306620,6.62445363,117960.0,117950.0,0.11605589]
[1753895306844,6.63293093,117960.0,117950.0,0.11605589]
[1753895307048,6.61372765,117960.0,117950.0,0.11605589]
[1753895307283,6.61965969,117960.0,117950.0,0.11605589]
[1753895307492,6.61118239,117960.0,117950.0,0.11605589]
[1753895308002,6.61965969,117960.0,117950.0,0.11605589]
[1753895308493,5.29717896,117960.0,117950.0,0.11605589]
[1753895308904,6.0803819,117960.0,117950.0,0.11605589]
[1753895310213,5.63717896,117960.0,117950.0,0.11605589]
[1753895310928,5.63713896,117960.0,117950.0,0.11605589]
[1753895311344,5.42334166,117960.0,117950.0,0.11605589]
[1753895311701,5.552667,117960.0,117950.0,0.11605589]
[1753895312341,5.544667,117960.0,117950.0,0.11605589]
[1753895312489,5.54466729,117960.0,117950.0,0.11605589]
[1753895314312,5.54366729,117960.0,117950.0,0.11505589]
[1753895314892,5.54466729,117960.0,117950.0,0.11705589]
[1753895315320,5.54366729,117960.0,117950.0,0.11605589]
[1753895315552,5.5436672,117960.0,117950.0,0.11605589]
[1753895315767,5.5446672,117960.0,117950.0,0.11905589]
[1753895316962,5.61728809,117960.0,117950.0,0.11905589]
[1753895317450,5.5446672,117960.0,117950.0,0.11905589]
[1753895317648,5.38974083,117960.0,117950.0,0.56225883]
[1753895317913,5.51902083,117960.0,117950.0,0.56225883]
[1753895318342,5.51902083,117960.0,117950.0,0.11905589]
[1753895319356,0.51902083,117960.0,117950.0,0.56225883]
[1753895319576,0.51902083,117960.0,117950.0,0.11905589]
[1753895321162,0.51902083,117960.0,117950.0,0.56225883]
[1753895321386,0.51901935,117960.0,117950.0,0.56225883]
[1753895323222,0.51901935,117960.0,117950.0,0.11905589]
[1753895324070,0.38973935,117960.0,117950.0,0.11905589]
[1753895324294,0.51901935,117960.0,117950.0,0.11905589]
[1753895324700,0.51901935,117960.0,117950.0,0.56225883]
[1753895325490,0.51111084,117960.0,117950.0,0.56225883]
[1753895325688,0.5190258,117960.0,117950.0,0.56225883]
[1753895328113,0.51903192,117960.0,117950.0,0.56225883]
[1753895328316,0.51903227,117960.0,117950.0,0.56225883]
[1753895328881,0.51903227,117960.0,117950.0,0.11905589]
[1753895331401,0.51903324,117960.0,117950.0,0.11905589]
[1753895331989,0.57478859,117960.0,117950.0,0.11905589]
[1753895332202,1.06883488,117960.0,117950.0,0.11384589]
[1753895332404,1.04520617,117960.0,117950.0,0.11384589]
[1753895332608,1.01799153,117960.0,117950.0,0.11687589]
[1753895332819,0.57478859,117960.0,117950.0,0.11903589]
[1753895333038,0.51903324,117960.0,117950.0,0.11903589]
[1753895333277,0.51899324,117960.0,117950.0,0.11903589]
[1753895337652,0.50513474,117960.0,117950.0,0.11903589]
[1753895340716,0.50513474,117960.0,117950.0,0.11687589]
[1753895340946,5.94833768,117960.0,117950.0,0.06968589]
[1753895341152,6.03281498,117960.0,117950.0,0.06968589]
[1753895341366,6.03281498,117960.0,117950.0,0.10973589]
[1753895341566,6.03281498,117960.0,117950.0,0.11286589]
[1753895341785,5.58961204,117960.0,117950.0,0.11286589]
[1753895341992,5.58961204,117960.0,117950.0,0.11499589]
[1753895343926,0.58961204,117960.0,117950.0,0.11499589]
[1753895350277,0.50513474,117960.0,117950.0,0.11499589]
[1753895351260,0.37589474,117960.0,117950.0,0.55819883]
[1753895351559,0.50513474,117960.0,117950.0,0.55819883]
[1753895352048,0.50513474,117960.0,117950.0,0.11499589]
[1753895352943,0.50380897,117960.0,117950.0,0.11499589]
[1753895354784,1.08030612,117960.0,117950.0,0.06968589]
[1753895355029,1.05667741,117960.0,117950.0,0.06968589]
[1753895355272,1.05667741,117960.0,117950.0,0.10973589]
[1753895355487,0.94701191,117960.0,117950.0,0.11286589]
[1753895355958,0.50380897,117960.0,117950.0,0.11286589]
[1753895356221,0.50380897,117960.0,117950.0,0.11499589]
[1753895359132,0.37456897,117960.0,117950.0,0.55819883]
[1753895359360,0.50380897,117960.0,117950.0,0.55819883]
[1753895362210,0.50380897,117960.0,117950.0,0.11499589]
[1753895365616,0.13124,117960.0,117950.0,0.11499589]
[1753895365887,0.63124,117960.0,117950.0,0.11499589]
[1753895366088,0.16075231,117960.0,117950.0,0.11499589]
[1753895366951,0.66075231,117960.0,117950.0,0.11499589]
[1753895367625,0.50075231,117960.0,117950.0,0.11499589]
[1753895368159,0.16075231,117960.0,117950.0,0.11499589]
[1753895369238,0.16075231,117960.0,117950.0,0.55819883]
[1753895369469,0.03151231,117960.0,117950.0,0.55819883]
[1753895370853,0.03151231,117960.0,117950.0,0.11499589]
[1753895371057,0.03151231,117960.0,117950.0,0.56031837]
[1753895371328,0.03151231,117960.0,117950.0,0.8122395]
[1753895371460,0.03151231,117960.0,117950.0,0.64267613]
[1753895371880,0.03151231,117960.0,117950.0,0.8122395]
[1753895372161,0.02951231,117960.0,117950.0,0.63767613]
[1753895372613,0.002,117960.0,117950.0,0.63907613]
[1753895372818,0.03195482,117960.0,117950.0,0.63907613]
[1753895373017,0.002,117960.0,117950.0,0.63907613]
[1753895375828,0.03113571,117960.0,117950.0,0.63907613]
[1753895379952,0.03113571,117960.0,117950.0,0.19587319]
[1753895380159,0.03113571,117960.0,117950.0,0.63907613]
[1753895387831,0.03113571,117960.0,117950.0,0.19587319]
[1753895388063,0.81041758,117970.0,117950.0,0.20986589]
[1753895388283,0.37514538,117970.0,117960.0,0.0272]
[1753895388515,0.34793074,117970.0,117960.0,0.0272]
[1753895388932,0.34793074,117970.0,117960.0,0.0548]
[1753895389381,0.34793074,117970.0,117960.0,0.09697]
[1753895389821,0.34893074,117970.0,117960.0,0.10097]
[1753895390036,0.34993074,117970.0,117960.0,0.10402]
[1753895390463,0.34893074,117970.0,117960.0,0.10402]
[1753895390874,0.35587974,117970.0,117960.0,0.10802]
[1753895391080,0.35587974,117970.0,117960.0,0.10497]
[1753895391303,0.39044208,117970.0,117960.0,0.10497]
[1753895391512,0.44138208,117970.0,117960.0,0.10497]
[1753895391719,0.39044208,117970.0,117960.0,0.10497]
[1753895395910,0.39044403,117970.0,117960.0,0.10497]
[1753895396708,0.39044403,117970.0,117960.0,0.10817]
[1753895397125,0.39044403,117970.0,117960.0,0.11021]
[1753895397332,0.39044403,117970.0,117960.0,0.55341294]
[1753895398031,0.39044403,117970.0,117960.0,0.11021]
[1753895401630,0.39044915,117970.0,117960.0,0.11021]
[1753895403352,0.39044915,117970.0,117960.0,0.5555323]
[1753895403551,0.03656234,117970.0,117960.0,1.31850492]
[1753895403793,0.002,117970.0,117960.0,1.31850492]
[1753895404822,0.002,117970.0,117960.0,1.32698236]
[1753895405184,0.002,117970.0,117960.0,1.35241383]
[1753895405663,0.002,117970.0,117960.0,1.35241398]
[1753895406165,0.002,117970.0,117960.0,1.3524139]
[1753895406410,0.002,117970.0,117960.0,1.35241398]
[1753895406625,0.002,117970.0,117960.0,1.36089049]
[1753895407740,0.002,117970.0,117960.0,1.35241355]
[1753895407953,0.002,117970.0,117960.0,1.37833951]
[1753895408713,0.03498448,117990.0,117980.0,0.16952025]
[1753895408952,0.49252216,118010.0,118000.0,0.058]
[1753895409168,0.49252216,118010.0,118000.0,0.67683158]
[1753895409381,0.49252216,118010.0,118000.0,0.67471294]
[1753895410064,0.52783776,118010.0,118000.0,0.67171294]
[1753895410498,0.52783776,118010.0,118000.0,0.92568176]
[1753895410499,0.18783776,118010.0,118000.0,0.92568176]
[1753895410733,0.19383776,118010.0,118000.0,0.92668176]
[1753895411169,0.19388629,118010.0,118000.0,0.92668176]
[1753895411392,0.19388629,118010.0,118000.0,0.75719024]
[1753895411632,0.19388629,118010.0,118000.0,0.92668176]
[1753895412051,0.19388629,118010.0,118000.0,0.75719024]
[1753895412257,0.19588629,118010.0,118000.0,0.75719024]
[1753895412894,0.19388629,118010.0,118000.0,0.75719024]
[1753895413321,0.19488629,118010.0,118000.0,0.76119024]
[1753895413555,0.19488629,118010.0,118000.0,0.76019024]
[1753895413556,0.18888629,118010.0,118000.0,0.76019024]
[1753895413757,0.18888629,118010.0,118000.0,0.3169873]
[1753895413961,0.18988629,118010.0,118000.0,0.76419024]
[1753895414188,0.18888629,118010.0,118000.0,0.76019024]
[1753895414920,0.18988629,118010.0,118000.0,0.3219873]
[1753895415184,0.18988629,118010.0,118000.0,0.3199473]
[1753895415771,0.18988629,118010.0,118000.0,0.76519024]
[1753895415932,0.18988629,118010.0,118000.0,0.93468176]
[1753895416139,0.18988629,118010.0,118000.0,0.76519024]
[1753895417980,0.18988629,118010.0,118000.0,0.3199473]
[1753895419005,0.18988629,118010.0,118000.0,0.3219873]
[1753895419403,0.18988629,118010.0,118000.0,0.76519024]
[1753895420917,0.18988629,118010.0,118000.0,0.3219873]
[1753895421136,0.18988629,118010.0,118000.0,0.76519024]
[1753895421514,0.18988629,118010.0,118000.0,0.3219873]
[1753895423715,0.73437742,118030.0,118000.0,0.2965873]
[1753895423926,0.44320294,118020.0,118010.0,0.03081846]
[1753895424158,0.45110552,118020.0,118010.0,0.0287]
[1753895424443,0.45110552,118020.0,118010.0,0.06781]
[1753895425381,0.47832016,118020.0,118010.0,0.12912]
[1753895426682,0.47832016,118020.0,118010.0,0.13212]
[1753895427272,0.47932016,118020.0,118010.0,0.13612]
[1753895428857,0.45210552,118020.0,118010.0,0.16552]
[1753895429440,0.4580394,118020.0,118010.0,0.20548]
[1753895430337,6.19719237,118020.0,118010.0,0.007]
[1753895430620,6.65529831,118020.0,118010.0,0.007]
[1753895430849,6.6316696,118020.0,118010.0,0.007]
[1753895431064,6.62219653,118020.0,118010.0,0.003]
[1753895431497,6.62219653,118020.0,118010.0,0.001]
[1753895431722,6.6137239,118020.0,118010.0,0.001]
[1753895431935,6.6137239,118020.0,118010.0,0.002]
[1753895432160,6.63066945,118020.0,118010.0,0.002]
[1753895432337,6.6221966,118020.0,118010.0,0.002]
[1753895433362,6.62221827,118020.0,118010.0,0.002]
[1753895433788,1.62221827,118020.0,118010.0,0.002]
[1753895433917,6.62221827,118020.0,118010.0,0.002]
[1753895434126,6.61374557,118020.0,118010.0,0.002]
[1753895434359,6.62221827,118020.0,118010.0,0.002]
[1753895434562,6.61374557,118020.0,118010.0,0.002]
[1753895434991,6.6137455,118020.0,118010.0,0.002]
[1753895435198,6.59947301,118020.0,118010.0,0.002]
[1753895435617,6.56065837,118020.0,118010.0,0.002]
[1753895436272,6.5606773,118020.0,118010.0,0.002]
[1753895437131,6.5606773,118020.0,118010.0,0.04196]
[1753895437482,6.1262,118020.0,118010.0,0.04503]
[1753895437677,6.1262,118020.0,118010.0,0.07173]
[1753895438551,6.1262,118020.0,118010.0,0.06866]
[1753895439306,6.1262072,118020.0,118010.0,0.06866]
[1753895440027,5.9970872,118020.0,118010.0,0.07381]
[1753895440229,5.68300426,118020.0,118010.0,0.107983]
[1753895440651,0.14300426,118020.0,118010.0,0.107983]
[1753895440896,0.01388426,118020.0,118010.0,0.107983]
[1753895442288,0.4570872,118020.0,118010.0,0.10081]
[1753895442877,0.45708754,118020.0,118010.0,0.10081]
[1753895443117,0.0138846,118020.0,118010.0,0.10081]
[1753895443328,0.45708754,118020.0,118010.0,0.10081]
[1753895443911,0.4570877,118020.0,118010.0,0.10081]
[1753895445291,0.01388476,118020.0,118010.0,0.10081]
[1753895448425,0.0138856,118020.0,118010.0,0.10081]
[1753895449693,0.0079347,118020.0,118010.0,0.10081]
[1753895449907,1.06256775,118030.0,118010.0,0.10041]
[1753895450162,1.40851914,118030.0,118020.0,0.0533]
[1753895450392,1.40851914,118030.0,118020.0,0.09841]
[1753895450622,1.40851914,118030.0,118020.0,0.104148]
[1753895451081,1.40951914,118030.0,118020.0,0.104148]
[1753895451761,1.41051914,118030.0,118020.0,0.104148]
[1753895452029,1.41151914,118030.0,118020.0,0.104148]
[1753895452231,1.41151914,118030.0,118020.0,0.09841]
[1753895452497,1.41051914,118030.0,118020.0,0.09841]
[1753895452716,1.41151914,118030.0,118020.0,0.09633]
[1753895454408,0.9683162,118030.0,118020.0,0.09633]
[1753895454604,1.41151914,118030.0,118020.0,0.09633]
[1753895454832,1.41151914,118030.0,118020.0,0.105963]
[1753895455011,1.41151914,118030.0,118020.0,0.09633]
[1753895456864,1.41151914,118030.0,118020.0,0.09841]
[1753895457349,1.40556354,118030.0,118020.0,0.09841]
[1753895458463,0.9623606,118030.0,118020.0,0.09841]
[1753895458690,1.40556354,118030.0,118020.0,0.09841]
[1753895458901,0.9623206,118030.0,118020.0,0.108251]
[1753895460311,0.96231895,118030.0,118020.0,0.108251]
[1753895460513,1.40552189,118030.0,118020.0,0.108251]
[1753895460726,1.40552189,118030.0,118020.0,0.09841]
[1753895462645,1.27644189,118030.0,118020.0,0.09841]
[1753895464213,0.82804124,118030.0,118020.0,0.09841]
[1753895465524,0.82804189,118030.0,118020.0,0.09841]
[1753895467444,0.82804189,118030.0,118020.0,0.09633]
[1753895467653,0.82804189,118030.0,118020.0,0.09326]
[1753895468080,0.38483895,118030.0,118020.0,0.09326]
[1753895468297,0.82804189,118030.0,118020.0,0.09326]
[1753895468541,0.98433653,118030.0,118020.0,0.0265]
[1753895468752,0.95712189,118030.0,118020.0,0.0537]
[1753895469420,0.95712189,118030.0,118020.0,0.09567]
[1753895471068,0.95712189,118030.0,118020.0,0.10072]
[1753895473603,0.82804189,118030.0,118020.0,0.10072]
[1753895474290,0.38483895,118030.0,118020.0,0.10072]
[1753895474525,0.04483895,118030.0,118020.0,0.10283828]
[1753895475488,0.04383895,118030.0,118020.0,0.10283828]
[1753895475743,0.04183895,118030.0,118020.0,0.10283828]
[1753895475977,0.04184542,118030.0,118020.0,0.10783828]
[1753895477384,0.04184542,118030.0,118020.0,0.55104122]
[1753895477621,0.04184542,118030.0,118020.0,0.63340024]
[1753895478090,0.04184542,118030.0,118020.0,0.1901973]
[1753895478781,0.03391011,118030.0,118020.0,0.1901973]
[1753895479010,0.04184934,118030.0,118020.0,0.3596601]
[1753895479238,0.03391011,118030.0,118020.0,0.3596601]
[1753895479452,0.03391011,118030.0,118020.0,0.1901973]
[1753895479684,0.04185055,118030.0,118020.0,0.1901973]
[1753895480344,0.03391011,118030.0,118020.0,0.1901973]
[1753895480811,0.04185057,118030.0,118020.0,0.1901973]
[1753895481999,0.04184996,118030.0,118020.0,0.1901973]
[1753895483406,0.03391011,118030.0,118020.0,0.1901973]
[1753895484645,0.03391011,118030.0,118020.0,0.3596601]
[1753895485112,4.857e-05,118030.0,118020.0,0.80286304]
[1753895485605,4.857e-05,118030.0,118020.0,0.3596601]
[1753895486305,0.034308,118030.0,118020.0,0.3596601]
[1753895487500,0.034308,118030.0,118020.0,0.1901973]
[1753895487707,0.034308,118030.0,118020.0,0.3596601]
[1753895488789,0.034308,118030.0,118020.0,0.3566601]
[1753895489213,0.034308,118030.0,118020.0,0.3586601]
[1753895489446,0.034308,118030.0,118020.0,0.3566601]
[1753895489896,0.034308,118030.0,118020.0,0.3586601]
[1753895491478,4.857e-05,118030.0,118020.0,0.3586601]
[1753895491697,4.857e-05,118030.0,118020.0,0.80186304]
[1753895492483,4.857e-05,118030.0,118020.0,0.3586601]
[1753895493555,0.03503109,118030.0,118020.0,0.3586601]
[1753895493776,4.857e-05,118030.0,118020.0,0.4877001]
[1753895495762,4.857e-05,118030.0,118020.0,0.3586601]
[1753895495980,4.857e-05,118030.0,118020.0,0.4877001]
[1753895496405,4.857e-05,118030.0,118020.0,0.3182373]
[1753895497964,4.857e-05,118030.0,118020.0,0.4877001]
[1753895498182,4.857e-05,118030.0,118020.0,0.3182373]
[1753895499141,4.857e-05,118030.0,118020.0,0.4877001]
[1753895500460,4.857e-05,118030.0,118020.0,0.3182373]
[1753895501971,0.28818638,118040.0,118030.0,0.0548]
[1753895502239,0.28818638,118040.0,118030.0,0.1819073]
[1753895502482,0.28818825,118040.0,118030.0,0.1819073]
[1753895502947,0.28818825,118040.0,118030.0,0.1840073]
[1753895503431,0.32288455,118040.0,118030.0,0.1840073]
[1753895505126,0.32288455,118040.0,118030.0,0.1819073]
[1753895505367,0.32288455,118040.0,118030.0,0.162677]
[1753895506785,0.32288455,118040.0,118030.0,0.164777]
[1753895507292,0.04263498,118040.0,118030.0,0.1668951]
[1753895508508,0.0346963,118040.0,118030.0,0.164777]
[1753895508748,0.47789924,118040.0,118030.0,0.164777]
[1753895509006,0.44320294,118040.0,118030.0,0.293817]
[1753895509493,5.0,118050.0,118040.0,0.0267]
[1753895509711,5.00794043,118050.0,118040.0,0.0267]
[1753895509930,0.50794043,118050.0,118040.0,0.0267]
[1753895510511,0.54227875,118050.0,118040.0,0.0267]
[1753895510766,0.48648169,118050.0,118040.0,0.0267]
[1753895511303,0.48848169,118050.0,118040.0,0.0267]
[1753895512801,0.48848169,118050.0,118040.0,0.06623]
[1753895514708,0.48848038,118050.0,118040.0,0.06623]
[1753895516005,0.48848038,118050.0,118040.0,0.06919]
[1753895516269,0.98848038,118050.0,118040.0,0.07130792]
[1753895516495,0.48848038,118050.0,118040.0,0.09780792]
[1753895517430,0.04527744,118050.0,118040.0,0.07130792]
[1753895517650,0.48848038,118050.0,118040.0,0.0267]
[1753895518349,0.48848038,118050.0,118040.0,0.0675]
[1753895519939,0.04527744,118050.0,118040.0,0.0675]
[1753895520136,0.48848038,118050.0,118040.0,0.0675]
[1753895520360,0.48848038,118050.0,118040.0,0.0912]
[1753895520554,0.48848038,118050.0,118040.0,0.09416]
[1753895520837,0.48847919,118050.0,118040.0,0.09416]
[1753895521288,0.48847919,118050.0,118040.0,0.09296]
[1753895521744,0.48847919,118050.0,118040.0,0.09507792]
[1753895522680,0.48848134,118050.0,118040.0,0.09507792]
[1753895523381,0.48848134,118050.0,118040.0,0.09296]
[1753895524768,0.50788134,118050.0,118030.0,0.1073773]
[1753895525003,0.44320294,118040.0,118030.0,0.21536]
[1753895525239,0.23733832,118050.0,118030.0,0.241816]
[1753895525486,0.68848056,118050.0,118040.0,0.0452]
[1753895525710,0.68848056,118050.0,118040.0,0.08896]
[1753895525981,0.68848056,118050.0,118040.0,0.09092]
[1753895525982,0.04527762,118050.0,118040.0,0.09092]
[1753895526227,0.003,118050.0,118040.0,0.86436878]
[1753895526465,0.0004,118080.0,118060.0,0.16940513]
[1753895526702,0.00054577,118080.0,118070.0,0.26307468]
[1753895526938,0.00054577,118080.0,118070.0,0.3066773]
[1753895527175,0.00054577,118080.0,118070.0,0.91927127]
[1753895527405,0.00054577,118080.0,118070.0,0.74988024]
[1753895527654,0.00054577,118080.0,118070.0,0.3066773]
[1753895528402,0.0346392,118080.0,118070.0,0.3066773]
[1753895528649,0.0346392,118080.0,118070.0,0.3096773]
[1753895528896,0.00054577,118080.0,118070.0,0.3096773]
[1753895529337,0.44374871,118080.0,118070.0,0.3096773]
[1753895530028,0.44569871,118080.0,118070.0,0.0908]
[1753895530221,0.88890165,118080.0,118070.0,0.22024]
[1753895530435,0.44569871,118080.0,118070.0,0.22024]
[1753895530658,0.44569871,118080.0,118070.0,0.2232]
[1753895531124,0.88890165,118080.0,118070.0,0.2232]
[1753895531347,0.88890165,118080.0,118070.0,0.05]
[1753895531578,0.88890165,118080.0,118070.0,0.202876]
[1753895531816,0.88890165,118080.0,118070.0,0.230076]
[1753895532045,0.44569871,118080.0,118070.0,0.230076]
[1753895532293,0.44569871,118080.0,118070.0,0.227076]
[1753895532519,0.44569871,118080.0,118070.0,0.22078]
[1753895533435,0.44569871,118080.0,118070.0,0.22374]
[1753895533686,0.47861233,118080.0,118070.0,0.2257]
[1753895534609,0.47861233,118080.0,118070.0,0.2277]
[1753895538337,0.48653452,118080.0,118070.0,0.2277]
[1753895538567,0.48848452,118080.0,118070.0,0.2277]
[1753895539678,0.04333158,118080.0,118070.0,0.2277]
[1753895539908,0.48653452,118080.0,118070.0,0.2277]
[1753895540794,0.47861233,118080.0,118070.0,0.2277]
[1753895542370,0.48056233,118080.0,118070.0,0.0933]
[1753895542586,0.92542527,118080.0,118070.0,0.1577]
[1753895543466,0.04694181,118080.0,118070.0,0.1577]
[1753895543717,0.93168769,118080.0,118070.0,0.2208]
[1753895543958,0.92376527,118080.0,118070.0,0.2208]
[1753895546509,0.93168836,118080.0,118070.0,0.2208]
[1753895547370,0.48848542,118080.0,118070.0,0.22616]
[1753895547569,0.48653542,118080.0,118070.0,0.22616]
[1753895548963,0.48849542,118080.0,118070.0,0.0506]
[1753895549200,1.27335836,118080.0,118070.0,0.0283]
[1753895549450,6.6552842,118080.0,118070.0,0.004]
[1753895549677,6.97450363,118080.0,118070.0,0.004]
[1753895549911,7.41821858,118080.0,118070.0,0.004]
[1753895550136,7.41821858,118080.0,118070.0,0.002]
[1753895550610,6.95238693,118080.0,118070.0,0.002]
[1753895550830,6.92517229,118080.0,118070.0,0.002]
[1753895551060,0.54,118050.0,118040.0,0.0232]
[1753895551289,6.11468294,118050.0,118040.0,0.06372]
[1753895552748,6.11468294,118050.0,118040.0,0.06472]
[1753895553203,6.11468294,118050.0,118040.0,0.06572]
[1753895555016,6.68216407,118050.0,118040.0,0.002]
[1753895555242,6.79385601,118050.0,118040.0,0.002]
[1753895555463,6.76664137,118050.0,118040.0,0.002]
[1753895555687,6.68216407,118050.0,118040.0,0.002]
[1753895555918,6.69063476,118050.0,118040.0,0.002]
[1753895556679,6.6991056,118050.0,118040.0,0.002]
[1753895556895,6.69063476,118050.0,118040.0,0.002]
[1753895557150,6.68216407,118050.0,118040.0,0.002]
[1753895557595,6.65029494,118050.0,118040.0,0.06752]
[1753895557824,6.64236318,118050.0,118040.0,0.06752]
[1753895559745,6.19916024,118050.0,118040.0,0.06752]
[1753895561439,1.20763058,118050.0,118040.0,0.06752]
[1753895561648,6.20763058,118050.0,118040.0,0.06752]
[1753895562005,6.65083352,118050.0,118040.0,0.06752]
[1753895562441,6.64236318,118050.0,118040.0,0.06752]
[1753895562871,6.66788769,118050.0,118040.0,0.06752]
[1753895563108,6.67635803,118050.0,118040.0,0.06752]
[1753895563327,6.66788769,118050.0,118040.0,0.06752]
[1753895564416,6.22468475,118050.0,118040.0,0.06752]
[1753895564854,6.66788769,118050.0,118040.0,0.06752]
[1753895565495,6.02468475,118050.0,118040.0,0.06752]
[1753895565993,6.03315509,118050.0,118040.0,0.06752]
[1753895566416,6.02468475,118050.0,118040.0,0.06752]
[1753895566682,6.49329977,118050.0,118040.0,0.06752]
[1753895566926,6.50768886,118050.0,118040.0,0.002]
[1753895567202,6.48648886,118050.0,118040.0,0.002]
[1753895567477,6.68557929,118050.0,118040.0,0.002]
[1753895567698,6.5433742,118050.0,118040.0,0.002]
[1753895568102,6.55184511,118050.0,118040.0,0.002]
[1753895568546,6.46788769,118050.0,118040.0,0.06712]
[1753895568966,5.34196,118050.0,118040.0,0.07248]
[1753895569181,5.92647897,118050.0,118040.0,0.09648]
[1753895569403,0.92647897,118050.0,118040.0,0.09648]
[1753895569844,0.92647933,118050.0,118040.0,0.09648]
[1753895570079,0.93690967,118050.0,118040.0,0.09648]
[1753895570569,0.92843933,118050.0,118040.0,0.09648]
[1753895571564,0.92249246,118050.0,118040.0,0.09648]
[1753895572087,0.93096287,118050.0,118040.0,0.09648]
[1753895572604,0.92249246,118050.0,118040.0,0.09648]
[1753895572850,1.37416581,118050.0,118040.0,0.09648]
[1753895573081,0.93096287,118050.0,118040.0,0.09648]
[1753895573309,1.37416581,118050.0,118040.0,0.09648]
[1753895573558,0.93096287,118050.0,118040.0,0.09648]
[1753895573704,1.3801108,118050.0,118040.0,0.09648]
[1753895574800,1.38858135,118050.0,118040.0,0.09648]
[1753895575027,1.37164039,118050.0,118040.0,0.09648]
[1753895575249,1.3801108,118050.0,118040.0,0.09648]
[1753895575625,0.93690786,118050.0,118040.0,0.09648]
[1753895576076,0.92843745,118050.0,118040.0,0.09648]
[1753895576296,0.93690786,118050.0,118040.0,0.09648]
[1753895576703,0.92843745,118050.0,118040.0,0.09648]
[1753895577160,0.93690779,118050.0,118040.0,0.09648]
[1753895577343,0.94537834,118050.0,118040.0,0.09648]
[1753895577590,1.3970519,118050.0,118040.0,0.09435]
[1753895578236,6.60212007,118050.0,118040.0,0.0266]
[1753895578432,6.57660402,118050.0,118040.0,0.0266]
[1753895578641,6.56813347,118050.0,118040.0,0.0266]
[1753895578857,6.75966285,118050.0,118040.0,0.002]
[1753895579413,6.75966285,118050.0,118040.0,0.0258]
[1753895579844,6.92861745,118050.0,118040.0,0.002]
[1753895580049,7.05889144,118050.0,118040.0,0.002]
[1753895580253,7.07215113,118050.0,118040.0,0.002]
[1753895580481,7.04852242,118050.0,118040.0,0.002]
[1753895580757,7.03464693,118050.0,118040.0,0.002]
[1753895580956,7.005764,118050.0,118040.0,0.002]
[1753895581359,5.56541639,118030.0,118020.0,0.03968]
[1753895581636,6.153844,118030.0,118020.0,0.09037]
[1753895582072,6.14537165,118030.0,118020.0,0.09037]
[1753895582337,6.153844,118030.0,118020.0,0.09037]
[1753895582560,6.31482053,118030.0,118020.0,0.06428]
[1753895583021,6.39929783,118030.0,118020.0,0.06428]
[1753895583462,6.39929419,118030.0,118020.0,0.06428]
[1753895584066,6.47695936,118030.0,118010.0,0.06687]
[1753895584277,5.79167564,118020.0,118010.0,0.08822857]
[1753895584494,5.93094593,118020.0,118010.0,0.08822857]
[1753895584631,5.93941863,118020.0,118010.0,0.08822857]
[1753895584836,5.93094593,118020.0,118010.0,0.09356857]
[1753895585058,5.92049337,118020.0,118010.0,0.09356857]
[1753895585491,5.92049337,118020.0,118010.0,0.09456857]
[1753895587322,5.92049119,118020.0,118010.0,0.09024857]
[1753895587522,5.92049119,118020.0,118010.0,0.09124857]
[1753895588302,0.92049119,118020.0,118010.0,0.09124857]
[1753895588503,5.92049119,118020.0,118010.0,0.09124857]
[1753895588718,5.92896368,118020.0,118010.0,0.09124857]
[1753895589106,5.92049119,118020.0,118010.0,0.09124857]
[1753895589306,0.92049119,118020.0,118010.0,0.09124857]
[1753895590405,0.91256294,118020.0,118010.0,0.09124857]
[1753895590604,0.9204912,118020.0,118010.0,0.09124857]
[1753895591041,0.92896369,118020.0,118010.0,0.09124857]
[1753895591858,0.96852035,118020.0,118010.0,0.08590857]
[1753895592120,7.09560798,118020.0,118010.0,0.02654857]
[1753895592754,6.65240504,118020.0,118010.0,0.02654857]
[1753895592979,6.65240504,118020.0,118010.0,0.02454857]
[1753895593204,6.65074504,118020.0,118010.0,0.02454857]
[1753895594231,6.64227198,118020.0,118010.0,0.02454857]
[1753895594655,7.08547492,118020.0,118010.0,0.02454857]
[1753895595551,6.64227198,118020.0,118010.0,0.02454857]
[1753895595736,6.64227198,118020.0,118010.0,0.06422857]
[1753895597127,7.08547492,118020.0,118010.0,0.06422857]
[1753895598010,6.64227198,118020.0,118010.0,0.06422857]
[1753895600042,6.6581426,118020.0,118010.0,0.06422857]
[1753895600477,6.3850581,118020.0,118010.0,0.09416857]
[1753895600693,6.16071485,118020.0,118010.0,0.09416857]
[1753895601133,6.16918748,118020.0,118010.0,0.09416857]
[1753895601564,1.16918741,118020.0,118010.0,0.09416857]
[1753895601805,5.92624186,118020.0,118010.0,0.09416857]
[1753895602031,5.93471435,118020.0,118010.0,0.09416857]
[1753895602732,5.94318691,118020.0,118010.0,0.09416857]
[1753895602963,5.98564956,118020.0,118010.0,0.09416857]
[1753895603196,6.06992603,118020.0,118010.0,0.09416857]
[1753895603624,6.08318836,118020.0,118010.0,0.09416857]
[1753895603844,6.07471551,118020.0,118010.0,0.09416857]
[1753895604113,6.08318836,118020.0,118010.0,0.09416857]
[1753895604665,6.09166135,118020.0,118010.0,0.09416857]
[1753895604864,6.04919848,118020.0,118010.0,0.09416857]
[1753895605086,5.96492194,118020.0,118010.0,0.09416857]
[1753895605515,5.49630125,118020.0,118010.0,0.09416857]
[1753895605724,5.95644924,118020.0,118010.0,0.09416857]
[1753895605974,5.93950419,118020.0,118010.0,0.09416857]
[1753895606793,5.93950862,118020.0,118010.0,0.09416857]
[1753895607321,5.92562527,118020.0,118010.0,0.09416857]
[1753895607805,6.02704791,118020.0,118010.0,0.09416857]
[1753895608008,6.03750083,118020.0,118010.0,0.09416857]
[1753895608228,6.04544258,118020.0,118010.0,0.09416857]
[1753895608430,6.08791966,118020.0,118010.0,0.09416857]
[1753895609051,6.03696966,118020.0,118010.0,0.09416857]
[1753895609471,6.04293173,118020.0,118010.0,0.09416857]
[1753895609674,5.91377173,118020.0,118010.0,0.09416857]
[1753895609888,6.05140458,118020.0,118010.0,0.09416857]
[1753895610079,6.0598775,118020.0,118010.0,0.09416857]